bitfinex/quotes_BTCUSD_20250601
["timestamp","ask_amount","ask_price","bid_price","bid_amount"]
[1748751135917,0.59112262,104420.0,104410.0,0.71765847]
[1748751136333,0.59112262,104420.0,104410.0,0.73549096]
[1748751136488,0.59112262,104420.0,104410.0,0.73326284]
[1748751136691,0.59112262,104420.0,104410.0,0.71765847]
[1748751136897,0.59112262,104420.0,104410.0,0.72434763]
[1748751137154,0.59112262,104420.0,104410.0,0.73260806]
[1748751137390,0.59112262,104420.0,104410.0,0.71765847]
[1748751137573,0.60752262,104420.0,104410.0,0.72434781]
[1748751137814,0.60752262,104420.0,104410.0,0.71765847]
[1748751138022,0.62372262,104420.0,104410.0,0.71765847]
[1748751138320,0.62372262,104420.0,104410.0,0.72434781]
[1748751138534,0.62372262,104420.0,104410.0,0.7511052]
[1748751138677,0.62372262,104420.0,104410.0,0.76068255]
[1748751139090,0.62372262,104420.0,104410.0,0.76068195]
[1748751139486,0.62372262,104420.0,104410.0,0.75110593]
[1748751139687,0.62372262,104420.0,104410.0,0.71765847]
[1748751139903,0.62372262,104420.0,104410.0,0.72723582]
[1748751140099,0.62372262,104420.0,104410.0,0.7428457]
[1748751140320,0.62372262,104420.0,104410.0,0.71765847]
[1748751140521,0.62372262,104420.0,104410.0,0.7511101]
[1748751140971,0.62372262,104420.0,104410.0,0.75111027]
[1748751141259,0.62372262,104420.0,104410.0,0.75111053]
[1748751141400,0.62372262,104420.0,104410.0,0.74219002]
[1748751141629,0.62372262,104420.0,104410.0,0.75111049]
[1748751142065,0.62372262,104420.0,104410.0,0.7511105]
[1748751142634,0.60732262,104420.0,104410.0,0.7511105]
[1748751142841,0.60732262,104420.0,104410.0,0.74218996]
[1748751143052,0.59112262,104420.0,104410.0,0.73549961]
[1748751143418,0.59112262,104420.0,104410.0,0.74153316]
[1748751144189,0.59112262,104420.0,104410.0,0.7511106]
[1748751144789,0.59112262,104420.0,104410.0,0.75112052]
[1748751145321,0.59112262,104420.0,104410.0,0.74154411]
[1748751145472,0.59112262,104420.0,104410.0,0.75112155]
[1748751145813,0.59112262,104420.0,104410.0,0.75112234]
[1748751146025,0.59112262,104420.0,104410.0,0.7415449]
[1748751146454,0.59112262,104420.0,104410.0,0.75112234]
[1748751146675,0.59112262,104420.0,104410.0,0.73485217]
[1748751146877,0.59112262,104420.0,104410.0,0.74154495]
[1748751147296,0.59112262,104420.0,104410.0,0.73485253]
[1748751147517,0.59112262,104420.0,104410.0,0.7415454]
[1748751147772,0.59112262,104420.0,104410.0,0.75112284]
[1748751148316,0.59112262,104420.0,104410.0,0.73550614]
[1748751148524,0.59112262,104420.0,104410.0,0.74154896]
[1748751148733,0.59112262,104420.0,104410.0,0.7415488]
[1748751148977,0.59112262,104420.0,104410.0,0.74154893]
[1748751149119,0.59112262,104420.0,104410.0,0.71700581]
[1748751149321,0.59112262,104420.0,104410.0,0.73485583]
[1748751149522,0.59112262,104420.0,104410.0,0.70808103]
[1748751149726,0.59112262,104420.0,104410.0,0.72593135]
[1748751150009,0.59112262,104420.0,104410.0,0.72593119]
[1748751150167,0.59112262,104420.0,104410.0,0.70808103]
[1748751150322,0.60742262,104420.0,104410.0,0.7259311]
[1748751150558,0.60742262,104420.0,104410.0,0.74154989]
[1748751151292,0.62312262,104420.0,104410.0,0.74155045]
[1748751151494,0.62312262,104420.0,104410.0,0.70808103]
[1748751151694,0.62312262,104420.0,104410.0,0.741551]
[1748751152139,0.62312262,104420.0,104410.0,0.75112844]
[1748751152350,0.62312262,104420.0,104410.0,0.74220382]
[1748751152556,0.62312262,104420.0,104410.0,0.74155305]
[1748751152895,0.62312262,104420.0,104410.0,0.74155778]
[1748751153102,0.62312262,104420.0,104410.0,0.75113559]
[1748751153315,0.62312262,104420.0,104410.0,0.75113605]
[1748751153514,0.62312262,104420.0,104410.0,0.75178628]
[1748751153722,0.62312262,104420.0,104410.0,0.72723582]
[1748751154227,0.62312262,104420.0,104410.0,0.72658598]
[1748751154467,0.62312262,104420.0,104410.0,0.72658604]
[1748751154680,0.62312262,104420.0,104410.0,0.72658641]
[1748751154893,0.62312262,104420.0,104410.0,0.71765847]
[1748751155084,0.62312262,104420.0,104410.0,0.72435442]
[1748751155226,0.62312262,104420.0,104410.0,0.71477697]
[1748751155442,0.62312262,104420.0,104410.0,0.70808103]
[1748751156341,0.62312262,104420.0,104410.0,0.72658638]
[1748751156578,0.62312262,104420.0,104410.0,0.71477696]
[1748751156800,0.62312262,104420.0,104410.0,0.74221022]
[1748751156976,0.62312262,104420.0,104410.0,0.70808103]
[1748751157170,0.62312262,104420.0,104410.0,0.72370492]
[1748751157348,0.62312262,104420.0,104410.0,0.7422103]
[1748751157553,0.62312262,104420.0,104410.0,0.73551435]
[1748751157735,0.62312262,104420.0,104410.0,0.73551438]
[1748751157938,0.62312262,104420.0,104410.0,0.71765847]
[1748751158554,0.62312262,104420.0,104410.0,0.72370524]
[1748751158770,0.62312262,104420.0,104410.0,0.70808103]
[1748751159402,0.62312262,104420.0,104410.0,0.74156151]
[1748751159634,0.62312262,104420.0,104410.0,0.74156152]
[1748751159825,0.62312262,104420.0,104410.0,0.73263338]
[1748751160033,0.43158844,104420.0,104410.0,0.75113882]
[1748751160234,0.43158844,104420.0,104410.0,0.74221066]
[1748751160488,0.43158844,104420.0,104410.0,1.0596856]
[1748751160489,0.41243531,104420.0,104410.0,1.0596856]
[1748751160720,0.42201128,104420.0,104410.0,1.09316244]
[1748751161254,0.42201119,104420.0,104410.0,1.09315335]
[1748751161455,0.43158725,104420.0,104410.0,1.09315333]
[1748751161664,0.43158725,104420.0,104410.0,1.09314097]
[1748751161846,0.43158725,104420.0,104410.0,1.0596856]
[1748751162086,0.43158725,104420.0,104410.0,1.07752663]
[1748751162296,0.39001119,104420.0,104410.0,1.07752662]
[1748751162523,0.39001119,104420.0,104410.0,1.06860609]
[1748751162736,0.39001119,104420.0,104410.0,1.09313748]
[1748751163540,0.39958725,104420.0,104410.0,1.0663752]
[1748751163837,0.39958725,104420.0,104410.0,1.09313357]
[1748751164054,0.39958725,104420.0,104410.0,1.06860507]
[1748751164294,0.39958725,104420.0,104410.0,1.07752459]
[1748751164503,0.39958725,104420.0,104410.0,1.0596856]
[1748751164859,0.39958725,104420.0,104410.0,1.07900199]
[1748751165429,0.39958725,104420.0,104410.0,1.10353027]
[1748751165655,0.39958725,104420.0,104410.0,1.11244964]
[1748751165856,0.39958725,104420.0,104410.0,1.11324974]
[1748751166157,0.39958725,104420.0,104410.0,1.11324968]
[1748751166387,0.39958725,104420.0,104410.0,1.10433031]
[1748751166594,0.39958725,104420.0,104410.0,1.10433046]
[1748751166799,0.39958725,104420.0,104410.0,1.13108884]
[1748751167013,0.39958725,104420.0,104410.0,1.12216938]
[1748751167210,0.39958725,104420.0,104410.0,1.10433046]
[1748751168407,0.39958725,104420.0,104410.0,1.11324993]
[1748751168769,0.39958725,104420.0,104410.0,1.12216935]
[1748751168996,0.39958725,104420.0,104410.0,1.10433046]
[1748751169553,0.39958725,104420.0,104410.0,1.12216896]
[1748751169754,0.39958725,104420.0,104410.0,1.10433046]
[1748751170381,0.39958725,104420.0,104410.0,1.11324948]
[1748751170614,0.39958725,104420.0,104410.0,1.10433046]
[1748751171046,0.39001119,104420.0,104410.0,1.10433046]
[1748751171472,0.39001119,104420.0,104410.0,1.1221684]
[1748751171684,0.38043531,104420.0,104410.0,1.54018476]
[1748751171902,0.38043531,104420.0,104410.0,1.88089328]
[1748751172123,0.38043531,104420.0,104410.0,1.53938476]
[1748751172740,0.37943531,104420.0,104410.0,1.54830113]
[1748751172944,0.37943531,104420.0,104410.0,1.54830112]
[1748751173079,0.37943531,104420.0,104410.0,1.55721748]
[1748751173282,0.37943531,104420.0,104410.0,1.53938476]
[1748751173562,0.37843531,104420.0,104410.0,1.55721749]
[1748751173762,0.37843531,104420.0,104410.0,1.57504967]
[1748751173953,0.37843531,104420.0,104410.0,1.55821749]
[1748751174332,0.37843531,104420.0,104410.0,1.57604971]
[1748751174535,0.37843531,104420.0,104410.0,1.55821749]
[1748751176144,0.37843531,104420.0,104410.0,1.58496306]
[1748751176358,0.37843531,104420.0,104410.0,1.58496298]
[1748751176957,0.37843531,104420.0,104410.0,1.57604782]
[1748751177190,0.37843531,104420.0,104410.0,1.584943]
[1748751177392,0.37843531,104420.0,104410.0,1.58494303]
[1748751177641,0.37843531,104420.0,104410.0,1.58657315]
[1748751177770,0.37843531,104420.0,104410.0,1.58657176]
[1748751177972,0.37843531,104420.0,104410.0,1.58656643]
[1748751178790,0.37843531,104420.0,104410.0,1.58656298]
[1748751179028,0.37843531,104420.0,104410.0,1.58656144]
[1748751179222,0.37843531,104420.0,104410.0,1.58656145]
[1748751179733,0.37843531,104420.0,104410.0,1.58655526]
[1748751180477,0.37843531,104420.0,104410.0,1.58655527]
[1748751180814,0.37843531,104420.0,104410.0,1.56874921]
[1748751181015,0.37843531,104420.0,104410.0,1.58655334]
[1748751181253,0.37843531,104420.0,104410.0,1.55984761]
[1748751182056,0.37843531,104420.0,104410.0,1.56874955]
[1748751182277,0.37843531,104420.0,104410.0,1.55984761]
[1748751182473,0.37843531,104420.0,104410.0,1.23108761]
[1748751182867,0.37843531,104420.0,104410.0,1.42264014]
[1748751183072,0.37843531,104420.0,104410.0,1.44179529]
[1748751183976,0.37843531,104420.0,104410.0,1.76466828]
[1748751184573,0.37843531,104420.0,104410.0,1.77920913]
[1748751187286,0.37843531,104420.0,104410.0,2.19280913]
[1748751189601,0.37843531,104420.0,104410.0,2.19360913]
[1748751191243,0.37843531,104420.0,104410.0,2.19193901]
[1748751194692,0.37843531,104420.0,104410.0,2.19347422]
[1748751197877,0.37843531,104420.0,104410.0,2.19267422]
[1748751205417,0.37843531,104420.0,104410.0,2.21050951]
[1748751205621,0.37843531,104420.0,104410.0,2.19267422]
[1748751205824,0.37843531,104420.0,104410.0,2.2105095]
[1748751206027,0.37843531,104420.0,104410.0,2.19267422]
[1748751206553,0.37843531,104420.0,104410.0,2.21942901]
[1748751206757,0.37843531,104420.0,104410.0,2.19267422]
[1748751206926,0.37843531,104420.0,104410.0,2.20159256]
[1748751207132,0.37843531,104420.0,104410.0,2.20159251]
[1748751207327,0.37843531,104420.0,104410.0,2.19267422]
[1748751207760,0.37843531,104420.0,104410.0,2.2194291]
[1748751207965,0.37843531,104420.0,104410.0,2.21943075]
[1748751208128,0.37843531,104420.0,104410.0,2.21943356]
[1748751208326,0.37843531,104420.0,104410.0,2.19267422]
[1748751209001,0.37843531,104420.0,104410.0,2.201594]
[1748751209197,0.37843531,104420.0,104410.0,2.19267422]
[1748751209389,0.39473531,104420.0,104410.0,2.19267422]
[1748751209949,0.39473531,104420.0,104410.0,2.21051476]
[1748751210144,0.39473531,104420.0,104410.0,2.19267422]
[1748751210863,0.39473531,104420.0,104410.0,2.20159567]
[1748751211287,0.39473531,104420.0,104410.0,2.20159568]
[1748751211499,0.41103531,104420.0,104410.0,2.20159568]
[1748751211700,0.41103531,104420.0,104410.0,2.21051716]
[1748751211820,0.41103531,104420.0,104410.0,2.21943863]
[1748751212399,0.41103531,104420.0,104410.0,1.92755863]
[1748751212597,0.41103531,104420.0,104410.0,2.21935868]
[1748751212796,0.41103531,104420.0,104410.0,2.19259422]
[1748751213002,0.41103531,104420.0,104410.0,2.21935857]
[1748751213196,0.41103531,104420.0,104410.0,2.19259422]
[1748751213733,0.41103531,104420.0,104410.0,2.21935857]
[1748751213882,0.41103531,104420.0,104410.0,2.19259422]
[1748751214086,0.41103531,104420.0,104410.0,2.21935857]
[1748751214870,0.41103531,104420.0,104410.0,2.21043712]
[1748751215077,0.41103531,104420.0,104410.0,2.21935801]
[1748751215273,0.41103531,104420.0,104410.0,2.21935834]
[1748751215960,0.41103531,104420.0,104410.0,2.21935884]
[1748751216167,0.39473531,104420.0,104410.0,2.2104373]
[1748751216525,0.37843531,104420.0,104410.0,2.21935851]
[1748751216879,0.37843531,104420.0,104410.0,2.21935852]
[1748751217105,0.37843531,104420.0,104410.0,2.21935853]
[1748751217301,0.37843531,104420.0,104410.0,2.21935854]
[1748751217541,0.37843531,104420.0,104410.0,2.19259422]
[1748751217728,0.37843531,104420.0,104410.0,2.21935851]
[1748751218594,0.37843531,104420.0,104410.0,2.2193583]
[1748751218823,0.37843531,104420.0,104410.0,2.21935828]
[1748751219178,0.37843531,104420.0,104410.0,2.21935827]
[1748751219381,0.37843531,104420.0,104410.0,2.21935829]
[1748751220164,0.37843531,104420.0,104410.0,2.21935612]
[1748751220433,0.37843531,104420.0,104410.0,2.567015]
[1748751220703,0.60039709,104460.0,104450.0,0.20105303]
[1748751220704,0.7918334,104460.0,104450.0,0.20105303]
[1748751220940,0.7918334,104460.0,104450.0,0.92270757]
[1748751220941,0.29667989,104460.0,104450.0,0.92270757]
[1748751221139,0.29667989,104460.0,104450.0,0.93228137]
[1748751221399,0.09564601,104460.0,104450.0,0.94185474]
[1748751222383,0.09564601,104460.0,104450.0,0.95142842]
[1748751222602,0.01929192,104460.0,104450.0,0.9514151]
[1748751222747,0.01929192,104460.0,104450.0,0.95141521]
[1748751222748,0.03086496,104460.0,104450.0,0.95141521]
[1748751222969,0.03086496,104460.0,104450.0,0.95074542]
[1748751223400,0.03086496,104460.0,104450.0,0.94117165]
[1748751223575,0.2223258,104460.0,104450.0,0.91445997]
[1748751223754,0.00214612,104460.0,104450.0,1.05617126]
[1748751223958,0.03086376,104460.0,104450.0,1.03836462]
[1748751224194,0.03086376,104460.0,104450.0,1.05616694]
[1748751224379,0.03086376,104460.0,104450.0,1.05682465]
[1748751224581,0.021291,104460.0,104450.0,1.04792961]
[1748751224847,0.03086367,104460.0,104450.0,1.03903457]
[1748751225449,0.02886367,104460.0,104450.0,1.05682452]
[1748751225649,0.02986367,104460.0,104450.0,1.03903457]
[1748751226032,0.02986367,104460.0,104450.0,1.05682455]
[1748751226231,0.02986367,104460.0,104450.0,1.03903457]
[1748751226657,0.02986367,104460.0,104450.0,1.05682301]
[1748751227065,0.02486367,104460.0,104450.0,1.05682307]
[1748751227224,0.02486367,104460.0,104450.0,1.03903457]
[1748751228303,0.0105723,104460.0,104450.0,1.03903457]
[1748751228534,0.02014488,104460.0,104450.0,1.0568224]
[1748751229097,0.02014479,104460.0,104450.0,1.0568224]
[1748751229496,0.02014479,104460.0,104450.0,1.07461024]
[1748751229699,0.02014479,104460.0,104450.0,1.0568224]
[1748751229896,0.02014479,104460.0,104450.0,1.07461024]
[1748751230097,0.02014479,104460.0,104450.0,1.0568224]
[1748751230313,0.02014479,104460.0,104450.0,1.07461024]
[1748751230314,0.001,104460.0,104450.0,1.07461024]
[1748751230527,0.001,104460.0,104450.0,1.71969539]
[1748751230725,0.001,104460.0,104450.0,1.3968224]
[1748751232093,0.0095713,104470.0,104460.0,0.22017886]
[1748751232295,0.01914296,104470.0,104460.0,0.5608347]
[1748751232501,0.01914296,104470.0,104460.0,0.54305185]
[1748751232674,0.01914296,104470.0,104460.0,0.56083231]
[1748751232890,0.01914296,104470.0,104460.0,0.54305185]
[1748751233051,0.01914296,104470.0,104460.0,0.56083221]
[1748751233255,0.01914296,104470.0,104460.0,0.54305185]
[1748751233256,0.02971435,104470.0,104460.0,0.54305185]
[1748751233657,0.02971435,104470.0,104460.0,0.56083041]
[1748751233858,0.02971426,104470.0,104460.0,0.54305185]
[1748751234055,0.02014269,104470.0,104460.0,0.54305185]
[1748751234241,0.02971426,104470.0,104460.0,0.54305185]
[1748751234646,0.02971426,104470.0,104460.0,0.56083041]
[1748751234869,0.02971426,104470.0,104460.0,0.54305185]
[1748751235520,0.02014269,104470.0,104460.0,0.54305185]
[1748751235727,0.02971426,104470.0,104460.0,0.56083039]
[1748751236078,0.03928601,104470.0,104460.0,0.57040288]
[1748751236280,0.02971426,104470.0,104460.0,0.55262434]
[1748751236507,0.03928592,104470.0,104460.0,0.55262434]
[1748751236908,0.04885777,104470.0,104460.0,0.54305194]
[1748751237272,0.04885777,104470.0,104460.0,0.55262434]
[1748751237273,0.03928592,104470.0,104460.0,0.55262434]
[1748751237811,0.04885777,104470.0,104460.0,0.5608305]
[1748751238027,0.04885777,104470.0,104460.0,0.54305194]
[1748751238436,0.04885777,104470.0,104460.0,0.83469194]
[1748751238650,0.04885777,104470.0,104460.0,0.82511945]
[1748751238857,0.04885777,104470.0,104460.0,0.83469203]
[1748751239064,0.04885777,104470.0,104460.0,0.84426452]
[1748751239468,0.04885777,104470.0,104460.0,0.86204153]
[1748751240124,0.03928592,104470.0,104460.0,0.86204153]
[1748751240337,0.21457772,104470.0,104460.0,0.01777701]
[1748751240535,0.21457772,104470.0,104460.0,0.30941701]
[1748751240536,0.2115863,104470.0,104460.0,0.30941701]
[1748751240927,0.2115863,104470.0,104460.0,0.3271988]
[1748751241128,0.2115863,104470.0,104460.0,0.30941701]
[1748751241569,0.2115863,104470.0,104460.0,0.32719896]
[1748751241832,0.2115863,104470.0,104460.0,0.30941701]
[1748751244040,0.2115863,104470.0,104460.0,0.32719899]
[1748751244240,0.2115863,104470.0,104460.0,0.3183077]
[1748751244566,0.2115863,104470.0,104460.0,0.30941701]
[1748751244967,0.2115863,104470.0,104460.0,0.30937701]
[1748751245175,0.2115863,104470.0,104460.0,0.33604915]
[1748751245395,0.2115863,104470.0,104460.0,0.30937701]
[1748751245775,0.2115863,104470.0,104460.0,0.32715844]
[1748751245973,0.2115863,104470.0,104460.0,0.3182678]
[1748751246178,0.2115863,104470.0,104460.0,0.30937701]
[1748751246400,0.2115863,104470.0,104460.0,0.32716033]
[1748751246575,0.2115863,104470.0,104460.0,0.31826867]
[1748751246779,0.2115863,104470.0,104460.0,0.30937701]
[1748751248802,0.2115863,104470.0,104460.0,0.02667955]
[1748751249007,0.3506152,104470.0,104460.0,0.01777701]
[1748751249272,0.8459152,104470.0,104460.0,0.01777701]
[1748751249974,0.8449152,104470.0,104460.0,0.01777701]
[1748751250416,0.8459152,104470.0,104460.0,0.01777701]
[1748751250818,0.8449152,104470.0,104460.0,0.01777701]
[1748751250947,0.8469152,104470.0,104460.0,0.01777701]
[1748751251296,0.70615605,104470.0,104460.0,0.01777701]
[1748751251500,1.09687605,104470.0,104460.0,0.01777701]
[1748751252804,1.47977605,104470.0,104460.0,0.01777701]
[1748751256264,1.498967,104470.0,104460.0,0.01777701]
[1748751259542,1.207367,104470.0,104460.0,0.01777701]
[1748751259786,1.4558324,104470.0,104460.0,0.01777701]
[1748751260111,1.4458324,104470.0,104460.0,0.01777701]
[1748751261988,1.4745764,104470.0,104460.0,0.01777701]
[1748751278208,1.4902764,104470.0,104460.0,0.01777701]
[1748751278755,1.5056764,104470.0,104460.0,0.01777701]
[1748751279198,1.59818762,104470.0,104460.0,0.01777701]
[1748751280733,1.5056764,104470.0,104460.0,0.01777701]
[1748751283784,1.4902764,104470.0,104460.0,0.01777701]
[1748751284337,1.4745764,104470.0,104460.0,0.01777701]
[1748751291301,1.5407615,104470.0,104460.0,0.01777701]
[1748751291729,1.54083127,104470.0,104460.0,0.01777701]
[1748751294803,1.57477636,104470.0,104460.0,0.01777701]
[1748751297284,1.57488282,104470.0,104460.0,0.01777701]
[1748751301265,1.54093773,104470.0,104460.0,0.01777701]
[1748751301475,1.54293773,104470.0,104460.0,0.01777701]
[1748751302569,1.54287773,104470.0,104460.0,0.01777701]
[1748751302770,1.54101107,104470.0,104460.0,0.01777701]
[1748751305358,1.5070981,104470.0,104460.0,0.01777701]
[1748751305837,1.5069781,104470.0,104460.0,0.01777701]
[1748751306043,1.54089954,104470.0,104460.0,0.01777701]
[1748751306425,1.5069781,104470.0,104460.0,0.01777701]
[1748751306734,1.54089953,104470.0,104460.0,0.01777701]
[1748751307231,1.54089951,104470.0,104460.0,0.01777701]
[1748751309523,1.14571866,104470.0,104460.0,0.01777701]
[1748751309740,0.87560771,104470.0,104460.0,0.01777701]
[1748751311305,0.72015794,104470.0,104460.0,0.01777701]
[1748751312322,0.62430364,104470.0,104460.0,0.01777701]
[1748751312934,0.62430364,104470.0,104460.0,0.03562459]
[1748751313177,0.62430364,104470.0,104460.0,0.01777701]
[1748751313373,0.62430364,104470.0,104460.0,0.5103307]
[1748751313579,0.62430364,104470.0,104460.0,0.51925412]
[1748751313941,0.61665845,104470.0,104460.0,0.5103308]
[1748751314143,0.60708651,104470.0,104460.0,0.5103308]
[1748751314560,0.60708651,104470.0,104460.0,0.52817431]
[1748751314767,0.60708651,104470.0,104460.0,0.5103308]
[1748751315349,0.60708651,104470.0,104460.0,0.5281748]
[1748751315554,0.60708651,104470.0,104460.0,0.5103308]
[1748751315705,0.60708651,104470.0,104460.0,0.5281748]
[1748751316347,0.60708651,104470.0,104460.0,0.52817484]
[1748751316501,0.60708651,104470.0,104460.0,0.5103308]
[1748751317128,0.60708651,104470.0,104460.0,0.51033089]
[1748751317642,0.60708651,104470.0,104460.0,0.51073089]
[1748751317863,0.60708651,104470.0,104460.0,0.30969701]
[1748751318268,0.60708651,104470.0,104460.0,0.31009701]
[1748751323182,0.57834251,104470.0,104460.0,0.31009701]
[1748751324546,0.57834251,104470.0,104460.0,0.32794095]
[1748751324752,0.57834251,104470.0,104460.0,0.31009701]
[1748751325642,0.57834251,104470.0,104460.0,0.32794098]
[1748751326035,0.57834251,104470.0,104460.0,0.30969701]
[1748751326396,0.57834251,104470.0,104460.0,0.30929701]
[1748751326596,0.57834251,104470.0,104460.0,0.31821909]
[1748751326901,0.57834251,104470.0,104460.0,0.3182191]
[1748751327101,0.57834251,104470.0,104460.0,0.30929701]
[1748751327681,0.57834251,104470.0,104460.0,0.32714222]
[1748751327855,0.57834251,104470.0,104460.0,0.30929701]
[1748751328455,0.57834251,104470.0,104460.0,0.32714243]
[1748751328734,0.57834251,104470.0,104460.0,0.31821986]
[1748751328934,0.57834251,104470.0,104460.0,0.02669995]
[1748751329129,0.57834251,104470.0,104460.0,0.30917701]
[1748751329592,0.59404251,104470.0,104460.0,0.32702299]
[1748751329796,0.59404251,104470.0,104460.0,0.30917701]
[1748751330400,0.59404251,104470.0,104460.0,0.31319675]
[1748751331033,0.59404251,104470.0,104460.0,0.33104276]
[1748751331468,0.60944251,104470.0,104460.0,0.31319675]
[1748751331874,0.60944251,104470.0,104460.0,0.33104454]
[1748751332097,0.60944251,104470.0,104460.0,0.3310446]
[1748751332308,0.60944251,104470.0,104460.0,0.33104461]
[1748751333629,0.60944251,104470.0,104460.0,0.31319675]
[1748751334007,0.60944251,104470.0,104460.0,0.33104504]
[1748751334201,0.60944251,104470.0,104460.0,0.31319675]
[1748751334836,0.60944251,104470.0,104460.0,0.33104504]
[1748751335000,0.60944251,104470.0,104460.0,0.31319675]
[1748751335202,0.60944251,104470.0,104460.0,0.33104504]
[1748751335463,0.60944251,104470.0,104460.0,0.31319675]
[1748751337039,0.60944251,104470.0,104460.0,0.02179675]
[1748751337393,0.60944251,104470.0,104460.0,0.31319675]
[1748751338436,0.60944251,104470.0,104460.0,0.33997017]
[1748751338864,0.59404251,104470.0,104460.0,0.3310457]
[1748751339060,0.59404251,104470.0,104460.0,0.33997007]
[1748751339287,0.57834251,104470.0,104460.0,0.33996987]
[1748751339977,0.57834251,104470.0,104460.0,0.31319675]
[1748751340657,0.57834251,104470.0,104460.0,0.3310455]
[1748751340854,0.57834251,104470.0,104460.0,0.33996991]
[1748751341057,0.57834251,104470.0,104460.0,0.32212114]
[1748751341290,0.57834251,104470.0,104460.0,0.31319675]
[1748751341687,0.57834251,104470.0,104460.0,0.33996992]
[1748751342089,0.57834251,104470.0,104460.0,0.33104554]
[1748751342297,0.57834251,104470.0,104460.0,0.32212113]
[1748751342500,0.57834251,104470.0,104460.0,0.3399699]
[1748751342702,0.57834251,104470.0,104460.0,0.33104565]
[1748751343001,0.57834251,104470.0,104460.0,0.33104569]
[1748751343141,0.57834251,104470.0,104460.0,0.31319675]
[1748751343449,0.57834251,104470.0,104460.0,0.33997016]
[1748751344045,0.59364251,104470.0,104460.0,0.33997016]
[1748751344425,0.60934251,104470.0,104460.0,0.33997083]
[1748751344626,0.60934251,104470.0,104460.0,0.33104629]
[1748751344839,0.60934251,104470.0,104460.0,0.31319675]
[1748751345458,0.60934251,104470.0,104460.0,0.32212152]
[1748751345632,0.60934251,104470.0,104460.0,0.3288476]
[1748751345954,0.60934251,104470.0,104460.0,0.32884785]
[1748751346159,0.60934251,104470.0,104460.0,0.31992245]
[1748751346455,0.60934251,104470.0,104460.0,0.32884785]
[1748751347867,0.60934251,104470.0,104460.0,0.33777326]
[1748751348072,0.60934251,104470.0,104460.0,0.32884785]
[1748751349273,0.60934251,104470.0,104460.0,0.35562427]
[1748751349807,0.59364251,104470.0,104460.0,0.35562447]
[1748751350056,0.59364251,104470.0,104460.0,0.33777339]
[1748751350236,0.57834251,104470.0,104460.0,0.32884785]
[1748751350456,0.57834251,104470.0,104460.0,0.3377734]
[1748751350671,0.57834251,104470.0,104460.0,0.32884785]
[1748751350887,0.57834251,104470.0,104460.0,0.3377734]
[1748751351112,0.57834251,104470.0,104460.0,0.32884785]
[1748751351255,0.57834251,104470.0,104460.0,0.3556245]
[1748751351430,0.57834251,104470.0,104460.0,0.3377734]
[1748751351871,0.57834251,104470.0,104460.0,0.34669895]
[1748751352096,0.57834251,104470.0,104460.0,0.3556245]
[1748751352525,0.57834251,104470.0,104460.0,0.35562449]
[1748751352995,0.57834251,104470.0,104460.0,0.3556245]
[1748751353624,0.57834251,104470.0,104460.0,0.34669895]
[1748751353828,0.57834251,104470.0,104460.0,0.35562544]
[1748751353977,0.57834251,104470.0,104460.0,0.32884785]
[1748751354996,0.57834251,104470.0,104460.0,0.34669966]
[1748751355336,0.57834251,104470.0,104460.0,0.32884785]
[1748751355760,0.57834251,104470.0,104460.0,0.35562556]
[1748751356017,0.57834251,104470.0,104460.0,0.34669966]
[1748751356214,0.57834251,104470.0,104460.0,0.32884785]
[1748751356602,0.57834251,104470.0,104460.0,0.35562556]
[1748751356808,0.57834251,104470.0,104460.0,0.33777375]
[1748751357016,0.57834251,104470.0,104460.0,0.35562556]
[1748751357341,0.57834251,104470.0,104460.0,0.33777375]
[1748751357499,0.57834251,104470.0,104460.0,0.32884785]
[1748751357705,0.57834251,104470.0,104460.0,0.35562559]
[1748751357995,0.57834251,104470.0,104460.0,0.33777376]
[1748751358219,0.57834251,104470.0,104460.0,0.32884785]
[1748751358612,0.57834251,104470.0,104460.0,0.33777376]
[1748751358810,0.57834251,104470.0,104460.0,0.34669968]
[1748751359016,0.57834251,104470.0,104460.0,0.35562559]
[1748751359258,0.57834251,104470.0,104460.0,0.53816052]
[1748751359662,0.57834251,104470.0,104460.0,0.54708643]
[1748751359873,0.57834251,104470.0,104460.0,0.32884785]
[1748751360083,0.57834251,104470.0,104460.0,0.34669974]
[1748751360297,0.57834251,104470.0,104460.0,0.35562559]
[1748751360577,0.57834251,104470.0,104460.0,0.54773339]
[1748751360829,0.57834251,104470.0,104460.0,0.52030869]
[1748751361049,0.57834251,104470.0,104460.0,0.54708636]
[1748751361397,0.57834251,104470.0,104460.0,0.86995935]
[1748751361845,0.57834251,104470.0,104460.0,0.67849837]
[1748751362040,0.57834251,104470.0,104460.0,0.6784983]
[1748751362242,0.57834251,104470.0,104460.0,0.35562531]
[1748751362605,0.57834251,104470.0,104460.0,0.32884785]
[1748751362864,0.57834251,104470.0,104460.0,0.3556252]
[1748751363760,0.57834251,104470.0,104460.0,0.35562511]
[1748751364366,0.57834251,104470.0,104460.0,0.34669936]
[1748751364522,0.57834251,104470.0,104460.0,0.35562511]
[1748751364723,0.57834251,104470.0,104460.0,0.32884785]
[1748751364968,0.57834251,104470.0,104460.0,0.35562508]
[1748751365646,0.57834251,104470.0,104460.0,0.34669934]
[1748751365846,0.57834251,104470.0,104460.0,0.35562508]
[1748751366044,0.57834251,104470.0,104460.0,0.35562507]
[1748751366251,0.57834251,104470.0,104460.0,0.36066944]
[1748751366809,0.57834251,104470.0,104460.0,0.36066942]
[1748751367411,0.57834251,104470.0,104460.0,0.35174369]
[1748751367646,0.57834251,104470.0,104460.0,0.35174368]
[1748751367826,0.57834251,104470.0,104460.0,0.33389222]
[1748751367980,0.57834251,104470.0,104460.0,0.31611521]
[1748751369398,0.57834251,104470.0,104460.0,0.32504094]
[1748751369615,0.57834251,104470.0,104460.0,0.33396667]
[1748751369817,0.57834251,104470.0,104460.0,0.31611521]
[1748751370018,0.57834251,104470.0,104460.0,0.34289713]
[1748751370226,0.57834251,104470.0,104460.0,0.3339705]
[1748751370435,0.57834251,104470.0,104460.0,0.34289811]
[1748751370639,0.57834251,104470.0,104460.0,0.34289861]
[1748751371001,0.57834251,104470.0,104460.0,0.3339709]
[1748751371208,0.57834251,104470.0,104460.0,0.53435958]
[1748751371899,0.57834251,104470.0,104460.0,0.53435954]
[1748751372096,0.57834251,104470.0,104460.0,0.54393258]
[1748751372275,0.57834251,104470.0,104460.0,0.52543169]
[1748751372482,0.57834251,104470.0,104460.0,0.34289865]
[1748751372695,0.57834251,104470.0,104460.0,0.31611521]
[1748751372877,0.57834251,104470.0,104460.0,0.34289868]
[1748751373429,0.57834251,104470.0,104460.0,0.33397086]
[1748751373638,0.57834251,104470.0,104460.0,0.5647797]
[1748751373849,0.3869,104470.0,104460.0,0.88595023]
[1748751374084,0.3869,104470.0,104460.0,1.19096694]
[1748751374290,0.40604287,104470.0,104460.0,1.20881866]
[1748751374518,0.40604287,104470.0,104460.0,1.18204005]
[1748751375094,0.41561453,104470.0,104460.0,1.18204005]
[1748751375302,0.42318638,104470.0,104460.0,1.18204005]
[1748751375491,0.42318638,104470.0,104460.0,1.20089143]
[1748751375712,0.42118638,104470.0,104460.0,1.17799568]
[1748751375952,0.42118638,104470.0,104460.0,1.19678105]
[1748751376181,0.3924713,104470.0,104460.0,1.19678105]